[Event "Titled Tuesday Blitz June 13 Late 2023"]
[White "Bartel, Michal"]
[Black "Sztokbant, Bernardo Vainzoff"]
[WhiteFideId "1119257"]
[BlackFideId "2115956"]
[WhiteElo "2282"]
[BlackElo "2222"]
[Result "1/2-1/2"]
[Round "3"]
[TimeControl "180+2"]
[Date "2023.06.13"]
[WhiteClock "0:01:22"]
[BlackClock "0:00:04"]
[Board "99"]

1. e4 {[%clk 0:03:00]}  c5 {[%clk 0:02:59]} 2. Ne2 {[%clk 0:03:00]}  Nc6 {[%clk 0:02:59]} 3. g3 {[%clk 0:03:01]}  Nf6 {[%clk 0:02:58]} 4. Bg2 {[%clk 0:03:01]}  g6 {[%clk 0:02:58]} 5. O-O {[%clk 0:03:02]}  Bg7 {[%clk 0:02:59]} 6. c3 {[%clk 0:03:02]}  O-O {[%clk 0:02:59]} 7. d4 {[%clk 0:03:03]}  cxd4 {[%clk 0:02:59]} 8. cxd4 {[%clk 0:03:04]}  d6 {[%clk 0:02:59]} 9. Nbc3 {[%clk 0:03:04]}  Bd7 {[%clk 0:02:58]} 10. h3 {[%clk 0:03:04]}  Rc8 {[%clk 0:02:57]} 11. Be3 {[%clk 0:03:04]}  a6 {[%clk 0:02:55]} 12. Qd2 {[%clk 0:03:04]}  b5 {[%clk 0:02:51]} 13. b3 {[%clk 0:03:05]}  e5 {[%clk 0:02:46]} 14. d5 {[%clk 0:03:03]}  Ne7 {[%clk 0:02:46]} 15. Rac1 {[%clk 0:02:56]}  Ne8 {[%clk 0:02:45]} 16. f3 {[%clk 0:02:51]}  f5 {[%clk 0:02:43]} 17. Qe1 {[%clk 0:02:48]}  Nf6 {[%clk 0:02:43]} 18. g4 {[%clk 0:02:47]}  Kh8 {[%clk 0:02:31]} 19. a4 {[%clk 0:02:44]}  bxa4 {[%clk 0:02:27]} 20. Nxa4 {[%clk 0:02:40]}  Bb5 {[%clk 0:02:22]} 21. Qd2 {[%clk 0:02:29]}  Nd7 {[%clk 0:01:51]} 22. Rxc8 {[%clk 0:02:26]}  Qxc8 {[%clk 0:01:46]} 23. Rc1 {[%clk 0:02:27]}  Qb7 {[%clk 0:01:37]} 24. Nec3 {[%clk 0:02:25]}  Rc8 {[%clk 0:01:34]} 25. Nxb5 {[%clk 0:02:22]}  axb5 {[%clk 0:01:27]} 26. Nb2 {[%clk 0:02:10]}  f4 {[%clk 0:01:19]} 27. Bf2 {[%clk 0:02:09]}  Bf6 {[%clk 0:01:15]} 28. Nd3 {[%clk 0:02:08]}  Rxc1+ {[%clk 0:01:06]} 29. Qxc1 {[%clk 0:02:09]}  Qc8 {[%clk 0:01:03]} 30. Qxc8+ {[%clk 0:02:07]}  Nxc8 {[%clk 0:01:04]} 31. h4 {[%clk 0:02:07]}  Bd8 {[%clk 0:01:02]} 32. g5 {[%clk 0:02:06]}  Bb6 {[%clk 0:01:02]} 33. Bh3 {[%clk 0:02:07]}  Bxf2+ {[%clk 0:00:59]} 34. Kxf2 {[%clk 0:02:08]}  Ncb6 {[%clk 0:00:59]} 35. Nb4 {[%clk 0:02:06]}  Nc5 {[%clk 0:00:58]} 36. Bf1 {[%clk 0:02:01]}  Nxb3 {[%clk 0:00:54]} 37. Bxb5 {[%clk 0:02:01]}  Kg7 {[%clk 0:00:49]} 38. Nc6 {[%clk 0:01:55]}  h6 {[%clk 0:00:42]} 39. Nd8 {[%clk 0:01:52]}  Nd4 {[%clk 0:00:36]} 40. Be8 {[%clk 0:01:45]}  hxg5 {[%clk 0:00:35]} 41. hxg5 {[%clk 0:01:46]}  Nc4 {[%clk 0:00:32]} 42. Nb7 {[%clk 0:01:44]}  Nd2 {[%clk 0:00:25]} 43. Nxd6 {[%clk 0:01:41]}  N2xf3 {[%clk 0:00:25]} 44. Nc4 {[%clk 0:01:38]}  Nxg5 {[%clk 0:00:20]} 45. Nxe5 {[%clk 0:01:33]}  Nxe4+ {[%clk 0:00:20]} 46. Kg2 {[%clk 0:01:32]}  g5 {[%clk 0:00:20]} 47. Bg6 {[%clk 0:01:30]}  Nf6 {[%clk 0:00:19]} 48. d6 {[%clk 0:01:30]}  Nb5 {[%clk 0:00:13]} 49. Bc2 {[%clk 0:01:25]}  Nxd6 {[%clk 0:00:12]} 50. Nf3 {[%clk 0:01:26]}  Kh6 {[%clk 0:00:10]} 51. Nd4 {[%clk 0:01:22]}  g4 {[%clk 0:00:08]} 52. Bd1 {[%clk 0:01:23]}  Kg6 {[%clk 0:00:04]} 53. Ne6 {[%clk 0:01:21]}  f3+ {[%clk 0:00:04]} 54. Kg3 {[%clk 0:01:21]}  Nf5+ {[%clk 0:00:04]} 55. Kf2 {[%clk 0:01:21]}  Nd5 {[%clk 0:00:03]} 56. Bxf3 {[%clk 0:01:21]}  gxf3 {[%clk 0:00:03]} 57. Kxf3 {[%clk 0:01:22]}  Nf6 {[%clk 0:00:03]} 58. Nf4+ {[%clk 0:01:21]}  Kf7 {[%clk 0:00:03]} 59. Nd3 {[%clk 0:01:21]}  Nd4+ {[%clk 0:00:03]} 60. Ke3 {[%clk 0:01:21]}  Ne6 {[%clk 0:00:04]} 61. Nf4 {[%clk 0:01:21]}  Ng5 {[%clk 0:00:04]} 62. Nd3 {[%clk 0:01:20]}  Ke7 {[%clk 0:00:04]} 63. Kf4 {[%clk 0:01:21]}  Ne6+ {[%clk 0:00:04]} 64. Ke5 {[%clk 0:01:21]}  Nd7+ {[%clk 0:00:04]} 65. Kd5 {[%clk 0:01:21]}  Nc7+ {[%clk 0:00:04]} 66. Kc4 {[%clk 0:01:21]}  Kd6 {[%clk 0:00:04]} 67. Kd4 {[%clk 0:01:21]}  Ne6+ {[%clk 0:00:04]} 68. Ke4 {[%clk 0:01:22]}  Ndc5+ {[%clk 0:00:04]} 69. Nxc5 {[%clk 0:01:22]} 1/2-1/2


[Site "https://www.chess.com"]

[Event "Titled Tuesday Blitz June 13 Late 2023"]
[White "Moral Garcia, Serafin"]
[Black "Arnold, Ken"]
[WhiteFideId "2201925"]
[BlackFideId "2056836"]
[WhiteElo "2274"]
[BlackElo "2449"]
[Result "1-0"]
[Round "3"]
[TimeControl "180+2"]
[Date "2023.06.13"]
[WhiteClock "0:00:11"]
[BlackClock "0:00:29"]
[Board "100"]

1. c4 {[%clk 0:03:00]}  Nf6 {[%clk 0:02:59]} 2. Nc3 {[%clk 0:03:01]}  e6 {[%clk 0:02:59]} 3. e3 {[%clk 0:02:58]}  d5 {[%clk 0:02:59]} 4. Nf3 {[%clk 0:02:58]}  Be7 {[%clk 0:02:58]} 5. b3 {[%clk 0:02:58]}  O-O {[%clk 0:02:58]} 6. Bb2 {[%clk 0:02:58]}  b6 {[%clk 0:02:59]} 7. cxd5 {[%clk 0:02:56]}  Nxd5 {[%clk 0:02:58]} 8. d4 {[%clk 0:02:55]}  Bb7 {[%clk 0:02:57]} 9. Bd3 {[%clk 0:02:55]}  Nc6 {[%clk 0:02:53]} 10. O-O {[%clk 0:02:53]}  Ncb4 {[%clk 0:02:52]} 11. Bb1 {[%clk 0:02:50]}  Nxc3 {[%clk 0:02:52]} 12. Bxc3 {[%clk 0:02:50]}  a5 {[%clk 0:02:42]} 13. a3 {[%clk 0:02:42]}  Nd5 {[%clk 0:02:41]} 14. Bb2 {[%clk 0:02:42]}  g6 {[%clk 0:02:33]} 15. Ne5 {[%clk 0:02:36]}  Bf6 {[%clk 0:02:31]} 16. Nf3 {[%clk 0:02:20]}  c5 {[%clk 0:02:25]} 17. Ba2 {[%clk 0:02:06]}  cxd4 {[%clk 0:02:22]} 18. Bxd4 {[%clk 0:02:06]}  Rc8 {[%clk 0:02:18]} 19. Qd2 {[%clk 0:01:53]}  Nc3 {[%clk 0:02:14]} 20. Bxf6 {[%clk 0:01:36]}  Qxf6 {[%clk 0:02:15]} 21. Nd4 {[%clk 0:01:36]}  Nxa2 {[%clk 0:02:13]} 22. Rxa2 {[%clk 0:01:33]}  Rfd8 {[%clk 0:02:07]} 23. Qe2 {[%clk 0:01:22]}  e5 {[%clk 0:02:00]} 24. Nf3 {[%clk 0:01:22]}  Qe6 {[%clk 0:01:56]} 25. Rb2 {[%clk 0:01:13]}  Bd5 {[%clk 0:01:52]} 26. Nd2 {[%clk 0:01:02]}  Rc3 {[%clk 0:01:48]} 27. e4 {[%clk 0:00:56]}  Bxb3 {[%clk 0:01:30]} 28. Rfb1 {[%clk 0:00:55]}  a4 {[%clk 0:01:30]} 29. Qb5 {[%clk 0:00:47]}  Rdd3 {[%clk 0:01:25]} 30. h3 {[%clk 0:00:44]}  h5 {[%clk 0:01:24]} 31. Nf3 {[%clk 0:00:38]}  Rxf3 {[%clk 0:01:22]} 32. gxf3 {[%clk 0:00:38]}  Qxh3 {[%clk 0:01:20]} 33. Qe8+ {[%clk 0:00:33]}  Kh7 {[%clk 0:01:19]} 34. Rxb3 {[%clk 0:00:30]}  Rxb3 {[%clk 0:01:13]} 35. Rxb3 {[%clk 0:00:30]}  axb3 {[%clk 0:01:11]} 36. Qxf7+ {[%clk 0:00:30]}  Kh6 {[%clk 0:01:09]} 37. Qf8+ {[%clk 0:00:23]}  Kh7 {[%clk 0:01:08]} 38. Qf7+ {[%clk 0:00:22]}  Kh6 {[%clk 0:01:08]} 39. Qxb3 {[%clk 0:00:20]}  Kg5 {[%clk 0:00:50]} 40. Qe3+ {[%clk 0:00:20]}  Kh4 {[%clk 0:00:48]} 41. a4 {[%clk 0:00:16]}  g5 {[%clk 0:00:46]} 42. Qb3 {[%clk 0:00:14]}  g4 {[%clk 0:00:45]} 43. Qxb6 {[%clk 0:00:14]}  Qxf3 {[%clk 0:00:44]} 44. a5 {[%clk 0:00:10]}  Kh3 {[%clk 0:00:42]} 45. Qe3 {[%clk 0:00:10]}  Qxe3 {[%clk 0:00:36]} 46. fxe3 {[%clk 0:00:10]}  Kg3 {[%clk 0:00:33]} 47. a6 {[%clk 0:00:11]}  h4 {[%clk 0:00:33]} 48. a7 {[%clk 0:00:11]}  h3 {[%clk 0:00:33]} 49. a8=Q {[%clk 0:00:11]}  h2+ {[%clk 0:00:29]} 50. Kh1 {[%clk 0:00:11]} 1-0


[Site "https://www.chess.com"]

[Event "Titled Tuesday Blitz June 13 Late 2023"]
[White "Karas, Marek"]
[Black "ATM622"]
[WhiteFideId "14928558"]
[WhiteElo "2229"]
[BlackElo "2600"]
[Result "0-1"]
[Round "3"]
[TimeControl "180+2"]
[Date "2023.06.13"]
[WhiteClock "0:00:34"]
[BlackClock "0:01:01"]
[Board "102"]

1. a3 {[%clk 0:03:00]}  e5 {[%clk 0:02:58]} 2. c4 {[%clk 0:02:59]}  f5 {[%clk 0:02:58]} 3. Nc3 {[%clk 0:03:00]}  Nf6 {[%clk 0:02:56]} 4. e3 {[%clk 0:02:59]}  c6 {[%clk 0:02:56]} 5. d4 {[%clk 0:02:54]}  e4 {[%clk 0:02:53]} 6. Nh3 {[%clk 0:02:52]}  d5 {[%clk 0:02:49]} 7. cxd5 {[%clk 0:02:50]}  cxd5 {[%clk 0:02:48]} 8. Bb5+ {[%clk 0:02:49]}  Bd7 {[%clk 0:02:45]} 9. Bxd7+ {[%clk 0:02:49]}  Nbxd7 {[%clk 0:02:44]} 10. Nf4 {[%clk 0:02:49]}  Nb6 {[%clk 0:02:41]} 11. Qb3 {[%clk 0:02:47]}  Bd6 {[%clk 0:02:35]} 12. Qb5+ {[%clk 0:02:38]}  Qd7 {[%clk 0:02:31]} 13. Qxd7+ {[%clk 0:02:38]}  Kxd7 {[%clk 0:02:31]} 14. Nfe2 {[%clk 0:02:38]}  Rac8 {[%clk 0:02:29]} 15. Bd2 {[%clk 0:02:38]}  Nc4 {[%clk 0:02:27]} 16. Rb1 {[%clk 0:02:37]}  Rc6 {[%clk 0:02:20]} 17. Ng3 {[%clk 0:02:28]}  g6 {[%clk 0:02:20]} 18. Ke2 {[%clk 0:02:29]}  Rhc8 {[%clk 0:02:17]} 19. Rhc1 {[%clk 0:02:28]}  a6 {[%clk 0:02:15]} 20. Ke1 {[%clk 0:02:24]}  b5 {[%clk 0:02:12]} 21. Nge2 {[%clk 0:02:22]}  b4 {[%clk 0:02:06]} 22. axb4 {[%clk 0:02:20]}  Bxb4 {[%clk 0:02:05]} 23. Nf4 {[%clk 0:02:17]}  g5 {[%clk 0:01:53]} 24. Nfe2 {[%clk 0:02:06]}  Ke6 {[%clk 0:01:52]} 25. Rc2 {[%clk 0:01:55]}  Nxd2 {[%clk 0:01:49]} 26. Kxd2 {[%clk 0:01:55]}  Rc4 {[%clk 0:01:44]} 27. Kd1 {[%clk 0:01:53]}  Ng4 {[%clk 0:01:42]} 28. Ke1 {[%clk 0:01:39]}  Nxh2 {[%clk 0:01:41]} 29. Ra1 {[%clk 0:01:39]}  a5 {[%clk 0:01:40]} 30. Kd2 {[%clk 0:01:25]}  Ng4 {[%clk 0:01:34]} 31. Ke1 {[%clk 0:01:25]}  h5 {[%clk 0:01:32]} 32. g3 {[%clk 0:01:23]}  h4 {[%clk 0:01:31]} 33. gxh4 {[%clk 0:01:23]}  gxh4 {[%clk 0:01:30]} 34. Nf4+ {[%clk 0:01:22]}  Kd6 {[%clk 0:01:27]} 35. Nxd5 {[%clk 0:01:21]}  h3 {[%clk 0:01:24]} 36. Ke2 {[%clk 0:01:15]}  Bxc3 {[%clk 0:01:21]} 37. Nxc3 {[%clk 0:01:15]}  a4 {[%clk 0:01:17]} 38. Nb5+ {[%clk 0:01:10]}  Ke7 {[%clk 0:01:14]} 39. Rxc4 {[%clk 0:01:09]}  Rxc4 {[%clk 0:01:13]} 40. Nc3 {[%clk 0:01:07]}  h2 {[%clk 0:01:08]} 41. f3 {[%clk 0:00:58]}  exf3+ {[%clk 0:01:04]} 42. Kxf3 {[%clk 0:00:59]}  a3 {[%clk 0:01:05]} 43. Ne2 {[%clk 0:00:44]}  axb2 {[%clk 0:01:03]} 44. Rb1 {[%clk 0:00:34]}  Rc1 {[%clk 0:01:01]} 0-1


[Site "https://www.chess.com"]

[Event "Titled Tuesday Blitz June 13 Late 2023"]
[White "Sebag, Marie"]
[Black "Kaplan, Avi Harrison"]
[WhiteFideId "617822"]
[BlackFideId "30934559"]
[WhiteElo "2431"]
[BlackElo "1983"]
[Result "0-1"]
[Round "3"]
[TimeControl "180+2"]
[Date "2023.06.13"]
[WhiteClock "0:01:33"]
[BlackClock "0:00:59"]
[Board "103"]

1. c4 {[%clk 0:03:00]}  g6 {[%clk 0:02:57]} 2. Nc3 {[%clk 0:02:55]}  Bg7 {[%clk 0:02:58]} 3. g3 {[%clk 0:02:55]}  Nf6 {[%clk 0:02:56]} 4. Bg2 {[%clk 0:02:55]}  O-O {[%clk 0:02:56]} 5. d4 {[%clk 0:02:53]}  d6 {[%clk 0:02:54]} 6. e3 {[%clk 0:02:53]}  Nc6 {[%clk 0:02:54]} 7. Nge2 {[%clk 0:02:53]}  e5 {[%clk 0:02:54]} 8. O-O {[%clk 0:02:53]}  Qe7 {[%clk 0:02:50]} 9. b3 {[%clk 0:02:53]}  e4 {[%clk 0:02:35]} 10. Bb2 {[%clk 0:02:53]}  h5 {[%clk 0:02:34]} 11. d5 {[%clk 0:02:47]}  Nb4 {[%clk 0:02:09]} 12. Nc1 {[%clk 0:02:35]}  h4 {[%clk 0:01:59]} 13. a3 {[%clk 0:02:34]}  Na6 {[%clk 0:01:58]} 14. b4 {[%clk 0:02:33]}  Bg4 {[%clk 0:01:53]} 15. Qc2 {[%clk 0:02:32]}  Bf3 {[%clk 0:01:44]} 16. Bxf3 {[%clk 0:02:23]}  exf3 {[%clk 0:01:43]} 17. Qd1 {[%clk 0:02:23]}  Ne4 {[%clk 0:01:33]} 18. N1a2 {[%clk 0:02:20]}  Ng5 {[%clk 0:01:29]} 19. e4 {[%clk 0:02:12]}  Qd7 {[%clk 0:01:21]} 20. Kh1 {[%clk 0:02:05]}  Qh3 {[%clk 0:01:21]} 21. Rg1 {[%clk 0:02:05]}  hxg3 {[%clk 0:01:21]} 22. Rxg3 {[%clk 0:02:03]}  Qh5 {[%clk 0:01:10]} 23. Qd3 {[%clk 0:01:49]}  Be5 {[%clk 0:01:07]} 24. Rag1 {[%clk 0:01:45]}  Kg7 {[%clk 0:01:00]} 25. Nd1 {[%clk 0:01:42]}  Qxh2+ {[%clk 0:00:58]} 26. Kxh2 {[%clk 0:01:33]}  Rh8# {[%clk 0:00:59]} 0-1


[Site "https://www.chess.com"]

[Event "Titled Tuesday Blitz June 13 Late 2023"]
[White "Can, Melih Kaan"]
[Black "Koellner, Ruben Gideon"]
[WhiteFideId "6317383"]
[BlackFideId "12993093"]
[WhiteElo "2010"]
[BlackElo "2314"]
[Result "0-1"]
[Round "3"]
[TimeControl "180+2"]
[Date "2023.06.13"]
[WhiteClock "0:00:03"]
[BlackClock "0:01:33"]
[Board "110"]

1. Nf3 {[%clk 0:03:00]}  d6 {[%clk 0:03:00]} 2. g3 {[%clk 0:02:59]}  Nf6 {[%clk 0:03:00]} 3. Bg2 {[%clk 0:02:58]}  g6 {[%clk 0:03:01]} 4. O-O {[%clk 0:02:58]}  Bg7 {[%clk 0:03:02]} 5. c4 {[%clk 0:02:55]}  O-O {[%clk 0:03:02]} 6. b3 {[%clk 0:02:51]}  e5 {[%clk 0:03:02]} 7. Bb2 {[%clk 0:02:48]}  Re8 {[%clk 0:03:03]} 8. d3 {[%clk 0:02:48]}  c6 {[%clk 0:03:03]} 9. a3 {[%clk 0:02:43]}  a5 {[%clk 0:03:03]} 10. b4 {[%clk 0:02:37]}  axb4 {[%clk 0:03:04]} 11. axb4 {[%clk 0:02:38]}  Rxa1 {[%clk 0:03:05]} 12. Bxa1 {[%clk 0:02:38]}  Nbd7 {[%clk 0:03:06]} 13. Qb3 {[%clk 0:02:35]}  h6 {[%clk 0:03:02]} 14. Nbd2 {[%clk 0:02:30]}  Qc7 {[%clk 0:03:01]} 15. Rb1 {[%clk 0:02:22]}  Nf8 {[%clk 0:03:00]} 16. b5 {[%clk 0:02:21]}  Bd7 {[%clk 0:03:00]} 17. bxc6 {[%clk 0:02:17]}  bxc6 {[%clk 0:03:01]} 18. h3 {[%clk 0:02:03]}  Ne6 {[%clk 0:03:01]} 19. Bc3 {[%clk 0:01:59]}  Nc5 {[%clk 0:03:01]} 20. Qb6 {[%clk 0:01:59]}  Qxb6 {[%clk 0:02:59]} 21. Rxb6 {[%clk 0:01:59]}  Na4 {[%clk 0:02:59]} 22. Rb3 {[%clk 0:01:56]}  Nxc3 {[%clk 0:03:00]} 23. Rxc3 {[%clk 0:01:56]}  e4 {[%clk 0:02:58]} 24. dxe4 {[%clk 0:01:44]}  Nxe4 {[%clk 0:02:59]} 25. Nxe4 {[%clk 0:01:44]}  Rxe4 {[%clk 0:02:56]} 26. Rd3 {[%clk 0:01:39]}  Rxc4 {[%clk 0:02:31]} 27. Rxd6 {[%clk 0:01:39]}  Be6 {[%clk 0:02:31]} 28. Nd2 {[%clk 0:01:30]}  Rc1+ {[%clk 0:02:31]} 29. Kh2 {[%clk 0:01:30]}  c5 {[%clk 0:02:31]} 30. Bd5 {[%clk 0:01:19]}  Bxd5 {[%clk 0:02:16]} 31. Rxd5 {[%clk 0:01:19]}  c4 {[%clk 0:02:15]} 32. Kg2 {[%clk 0:01:12]}  Rd1 {[%clk 0:02:08]} 33. e4 {[%clk 0:00:53]}  c3 {[%clk 0:01:57]} 34. Nb3 {[%clk 0:00:52]}  Rxd5 {[%clk 0:01:52]} 35. exd5 {[%clk 0:00:49]}  c2 {[%clk 0:01:53]} 36. d6 {[%clk 0:00:47]}  Kf8 {[%clk 0:01:53]} 37. Kf3 {[%clk 0:00:35]}  Bb2 {[%clk 0:01:53]} 38. Ke4 {[%clk 0:00:34]}  Ke8 {[%clk 0:01:47]} 39. Kd5 {[%clk 0:00:28]}  c1=Q {[%clk 0:01:46]} 40. Nxc1 {[%clk 0:00:27]}  Bxc1 {[%clk 0:01:47]} 41. Ke5 {[%clk 0:00:17]}  Bb2+ {[%clk 0:01:47]} 42. Kd5 {[%clk 0:00:17]}  Kd7 {[%clk 0:01:48]} 43. f4 {[%clk 0:00:16]}  f5 {[%clk 0:01:39]} 44. g4 {[%clk 0:00:14]}  h5 {[%clk 0:01:38]} 45. gxh5 {[%clk 0:00:05]}  gxh5 {[%clk 0:01:38]} 46. h4 {[%clk 0:00:04]}  Bc3 {[%clk 0:01:35]} 47. Kc4 {[%clk 0:00:03]}  Bd2 {[%clk 0:01:31]} 48. Kd5 {[%clk 0:00:04]}  Bxf4 {[%clk 0:01:31]} 49. Kd4 {[%clk 0:00:04]}  Bxd6 {[%clk 0:01:31]} 50. Kd5 {[%clk 0:00:04]}  f4 {[%clk 0:01:31]} 51. Ke4 {[%clk 0:00:04]}  Ke6 {[%clk 0:01:32]} 52. Kf3 {[%clk 0:00:03]}  Kf5 {[%clk 0:01:33]} 0-1


[Site "https://www.chess.com"]

[Event "Titled Tuesday Blitz June 13 Late 2023"]
[White "Krishnan, Varun"]
[Black "Carlstedt, Jonathan"]
[WhiteFideId "5054508"]
[BlackFideId "24614386"]
[WhiteElo "2577"]
[BlackElo "2333"]
[Result "0-1"]
[Round "3"]
[TimeControl "180+2"]
[Date "2023.06.13"]
[WhiteClock "0:00:21"]
[BlackClock "0:01:16"]
[Board "112"]

1. d4 {[%clk 0:01:38]}  d5 {[%clk 0:02:57]} 2. c4 {[%clk 0:01:38]}  e6 {[%clk 0:02:57]} 3. Nc3 {[%clk 0:01:37]}  c5 {[%clk 0:02:57]} 4. cxd5 {[%clk 0:01:37]}  exd5 {[%clk 0:02:57]} 5. Nf3 {[%clk 0:01:36]}  Nf6 {[%clk 0:02:58]} 6. g3 {[%clk 0:01:37]}  Nc6 {[%clk 0:02:57]} 7. Bg2 {[%clk 0:01:37]}  cxd4 {[%clk 0:02:58]} 8. Nxd4 {[%clk 0:01:37]}  Bc5 {[%clk 0:02:58]} 9. Be3 {[%clk 0:01:36]}  Qb6 {[%clk 0:02:43]} 10. Ncb5 {[%clk 0:00:47]}  O-O {[%clk 0:02:12]} 11. Nxc6 {[%clk 0:00:43]}  bxc6 {[%clk 0:02:09]} 12. Bxc5 {[%clk 0:00:43]}  Qxc5 {[%clk 0:02:10]} 13. Nd4 {[%clk 0:00:43]}  Rb8 {[%clk 0:02:01]} 14. Qd2 {[%clk 0:00:39]}  Bd7 {[%clk 0:01:54]} 15. O-O {[%clk 0:00:39]}  Qd6 {[%clk 0:01:46]} 16. Rac1 {[%clk 0:00:34]}  c5 {[%clk 0:01:46]} 17. Nb3 {[%clk 0:00:34]}  Rfc8 {[%clk 0:01:44]} 18. e4 {[%clk 0:00:28]}  d4 {[%clk 0:01:40]} 19. Na5 {[%clk 0:00:28]}  Bb5 {[%clk 0:01:37]} 20. Nc4 {[%clk 0:00:27]}  Bxc4 {[%clk 0:01:36]} 21. Rxc4 {[%clk 0:00:28]}  Nd7 {[%clk 0:01:36]} 22. b4 {[%clk 0:00:27]}  Nb6 {[%clk 0:01:27]} 23. bxc5 {[%clk 0:00:27]}  Nxc4 {[%clk 0:01:26]} 24. cxd6 {[%clk 0:00:27]}  Nxd2 {[%clk 0:01:26]} 25. Rd1 {[%clk 0:00:26]}  Rb1 {[%clk 0:01:24]} 26. Rxb1 {[%clk 0:00:26]}  Nxb1 {[%clk 0:01:25]} 27. Bf1 {[%clk 0:00:27]}  Kf8 {[%clk 0:01:21]} 28. e5 {[%clk 0:00:25]}  Nd2 {[%clk 0:01:17]} 29. Bd3 {[%clk 0:00:26]}  Nf3+ {[%clk 0:01:15]} 30. Kg2 {[%clk 0:00:21]}  Nxe5 {[%clk 0:01:16]} 0-1


[Site "https://www.chess.com"]

[Event "Titled Tuesday Blitz June 13 Late 2023"]
[White "Novik, Maxim"]
[Black "Rodriguez, Santiago"]
[WhiteFideId "4102924"]
[BlackFideId "3000591"]
[WhiteElo "2287"]
[BlackElo "2249"]
[Result "0-1"]
[Round "3"]
[TimeControl "180+2"]
[Date "2023.06.13"]
[WhiteClock "0:00:00"]
[BlackClock "0:00:12"]
[Board "117"]

1. e4 {[%clk 0:03:00]}  c5 {[%clk 0:02:59]} 2. Nc3 {[%clk 0:03:00]}  Nc6 {[%clk 0:02:59]} 3. Bb5 {[%clk 0:03:00]}  Nd4 {[%clk 0:02:58]} 4. Nf3 {[%clk 0:03:00]}  Nxb5 {[%clk 0:02:58]} 5. Nxb5 {[%clk 0:03:00]}  d6 {[%clk 0:02:56]} 6. d4 {[%clk 0:02:59]}  a6 {[%clk 0:02:56]} 7. Nc3 {[%clk 0:02:58]}  cxd4 {[%clk 0:02:57]} 8. Qxd4 {[%clk 0:02:58]}  Nf6 {[%clk 0:02:53]} 9. e5 {[%clk 0:02:57]}  dxe5 {[%clk 0:02:49]} 10. Qxd8+ {[%clk 0:02:56]}  Kxd8 {[%clk 0:02:50]} 11. Nxe5 {[%clk 0:02:57]}  Be6 {[%clk 0:02:48]} 12. Be3 {[%clk 0:02:54]}  g6 {[%clk 0:02:46]} 13. O-O-O+ {[%clk 0:02:54]}  Ke8 {[%clk 0:02:46]} 14. Na4 {[%clk 0:02:20]}  Nd5 {[%clk 0:02:35]} 15. Bd4 {[%clk 0:02:20]}  Bg7 {[%clk 0:02:34]} 16. c4 {[%clk 0:02:16]}  Nf4 {[%clk 0:02:31]} 17. Nf3 {[%clk 0:01:11]}  Ne2+ {[%clk 0:02:17]} 18. Kb1 {[%clk 0:01:09]}  Nxd4 {[%clk 0:01:58]} 19. Nxd4 {[%clk 0:01:08]}  Bd7 {[%clk 0:01:20]} 20. Nb6 {[%clk 0:01:05]}  Rd8 {[%clk 0:01:18]} 21. Nxd7 {[%clk 0:00:46]}  Rxd7 {[%clk 0:01:19]} 22. Nb3 {[%clk 0:00:44]}  Rc7 {[%clk 0:01:10]} 23. c5 {[%clk 0:00:43]}  e6 {[%clk 0:01:08]} 24. Rd6 {[%clk 0:00:34]}  Ke7 {[%clk 0:01:07]} 25. Rhd1 {[%clk 0:00:34]}  Be5 {[%clk 0:01:06]} 26. Rb6 {[%clk 0:00:30]}  Rhc8 {[%clk 0:01:02]} 27. Na5 {[%clk 0:00:29]}  Rxc5 {[%clk 0:00:59]} 28. Rxb7+ {[%clk 0:00:29]}  Kf8 {[%clk 0:00:49]} 29. Nb3 {[%clk 0:00:23]}  Rc2 {[%clk 0:00:47]} 30. Na5 {[%clk 0:00:19]}  Kg7 {[%clk 0:00:39]} 31. a3 {[%clk 0:00:19]}  Rxf2 {[%clk 0:00:35]} 32. Rdd7 {[%clk 0:00:16]}  Rcc2 {[%clk 0:00:27]} 33. Nc6 {[%clk 0:00:07]}  Rxb2+ {[%clk 0:00:26]} 34. Rxb2 {[%clk 0:00:06]}  Rxb2+ {[%clk 0:00:27]} 35. Kc1 {[%clk 0:00:06]}  Bf6 {[%clk 0:00:25]} 36. Nd8 {[%clk 0:00:05]}  Rf2 {[%clk 0:00:17]} 37. Rxf7+ {[%clk 0:00:05]}  Kh6 {[%clk 0:00:17]} 38. Kd1 {[%clk 0:00:04]}  Rf5 {[%clk 0:00:15]} 39. Nxe6 {[%clk 0:00:04]}  Rd5+ {[%clk 0:00:12]} 40. Ke2 {[%clk 0:00:00]}  Re5+ {[%clk 0:00:12]} 0-1


[Site "https://www.chess.com"]

[Event "Titled Tuesday Blitz June 13 Late 2023"]
[White "Castella Garcia, Fausto"]
[Black "Gimenez Aguirre, Alejo Ismael"]
[WhiteFideId "3501922"]
[BlackFideId "32041667"]
[WhiteElo "2245"]
[BlackElo "2165"]
[Result "0-1"]
[Round "3"]
[TimeControl "180+2"]
[Date "2023.06.13"]
[WhiteClock "0:00:03"]
[BlackClock "0:00:38"]
[Board "119"]

1. e4 {[%clk 0:03:00]}  c5 {[%clk 0:02:58]} 2. Nf3 {[%clk 0:02:59]}  g6 {[%clk 0:02:58]} 3. Bc4 {[%clk 0:02:58]}  Bg7 {[%clk 0:02:59]} 4. O-O {[%clk 0:02:59]}  Nc6 {[%clk 0:02:58]} 5. c3 {[%clk 0:02:58]}  e6 {[%clk 0:02:55]} 6. d4 {[%clk 0:02:58]}  cxd4 {[%clk 0:02:55]} 7. Nxd4 {[%clk 0:02:58]}  d5 {[%clk 0:02:55]} 8. exd5 {[%clk 0:02:52]}  exd5 {[%clk 0:02:56]} 9. Bb5 {[%clk 0:02:51]}  Ne7 {[%clk 0:02:56]} 10. Bg5 {[%clk 0:02:38]}  f6 {[%clk 0:02:55]} 11. Bxc6+ {[%clk 0:02:25]}  bxc6 {[%clk 0:02:53]} 12. Be3 {[%clk 0:02:25]}  O-O {[%clk 0:02:53]} 13. Re1 {[%clk 0:02:17]}  Rb8 {[%clk 0:02:48]} 14. Nb3 {[%clk 0:02:14]}  Qc7 {[%clk 0:02:44]} 15. Bc5 {[%clk 0:02:05]}  Rf7 {[%clk 0:02:43]} 16. N1d2 {[%clk 0:01:56]}  Nf5 {[%clk 0:02:26]} 17. Re8+ {[%clk 0:01:50]}  Bf8 {[%clk 0:02:26]} 18. Nf3 {[%clk 0:01:37]}  Bd7 {[%clk 0:02:23]} 19. Rxb8 {[%clk 0:01:33]}  Qxb8 {[%clk 0:02:24]} 20. Qd2 {[%clk 0:01:22]}  Nd6 {[%clk 0:02:20]} 21. Qf4 {[%clk 0:01:13]}  a5 {[%clk 0:01:59]} 22. Re1 {[%clk 0:01:04]}  g5 {[%clk 0:01:50]} 23. Qg3 {[%clk 0:01:01]}  h6 {[%clk 0:01:51]} 24. Nbd4 {[%clk 0:00:53]}  Kh7 {[%clk 0:01:29]} 25. Ne6 {[%clk 0:00:48]}  Be7 {[%clk 0:01:22]} 26. Nfd4 {[%clk 0:00:44]}  h5 {[%clk 0:01:09]} 27. Qd3+ {[%clk 0:00:39]}  Ne4 {[%clk 0:01:04]} 28. Rxe4 {[%clk 0:00:38]}  dxe4 {[%clk 0:01:04]} 29. Qxe4+ {[%clk 0:00:37]}  f5 {[%clk 0:01:01]} 30. Nxf5 {[%clk 0:00:38]}  Bxc5 {[%clk 0:00:49]} 31. Ne7+ {[%clk 0:00:30]}  Kh8 {[%clk 0:00:49]} 32. Nxc5 {[%clk 0:00:19]}  Bg4 {[%clk 0:00:49]} 33. Qd4+ {[%clk 0:00:17]}  Kh7 {[%clk 0:00:47]} 34. Qe4+ {[%clk 0:00:17]}  Kg7 {[%clk 0:00:48]} 35. Qd4+ {[%clk 0:00:16]}  Kh7 {[%clk 0:00:43]} 36. Qe4+ {[%clk 0:00:16]}  Kh8 {[%clk 0:00:44]} 37. Qd4+ {[%clk 0:00:15]}  Rg7 {[%clk 0:00:44]} 38. h3 {[%clk 0:00:12]}  Qe8 {[%clk 0:00:39]} 39. Qf6 {[%clk 0:00:03]}  Qxe7 {[%clk 0:00:38]} 0-1


[Site "https://www.chess.com"]